[Event "Live Chess"]
[Site "Chess.com"]
[Date "2023.05.20"]
[Round "-"]
[White "wadsy27"]
[Black "f4nomore"]
[Result "1-0"]
[WhiteElo "2560"]
[BlackElo "1416"]
[TimeControl "300"]
[EndTime "15:08:55 PDT"]
[Termination "wadsy27 won by resignation"]

1. c4 {[%clk 0:04:58.6]} 1... g6 {[%clk 0:04:59.9]} 2. g3 {[%clk 0:04:56.7]}
2... Bg7 {[%clk 0:04:58.5]} 3. Bg2 {[%clk 0:04:56]} 3... d6 {[%clk 0:04:55.1]}
4. Nc3 {[%clk 0:04:54.9]} 4... Nd7 {[%clk 0:04:53.4]} 5. Nf3 {[%clk 0:04:53.6]}
5... a6 {[%clk 0:04:51.4]} 6. O-O {[%clk 0:04:52.3]} 6... Ngf6 {[%clk
0:04:46.9]} 7. d4 {[%clk 0:04:51]} 7... O-O {[%clk 0:04:45.5]} 8. e4 {[%clk
0:04:50.1]} 8... e5 {[%clk 0:04:43.7]} 9. h3 {[%clk 0:04:47.6]} 9... exd4 {[%clk
0:04:41.8]} 10. Nxd4 {[%clk 0:04:40.5]} 10... Nc5 {[%clk 0:04:39.7]} 11. Re1
{[%clk 0:04:38.7]} 11... Re8 {[%clk 0:04:24.3]} 12. Qc2 {[%clk 0:04:25.7]} 12...
Bd7 {[%clk 0:04:18.6]} 13. Be3 {[%clk 0:04:21.8]} 13... Qc8 {[%clk 0:04:16.4]}
14. Kh2 {[%clk 0:04:20.4]} 14... Ncxe4 {[%clk 0:03:58.3]} 15. Nxe4 {[%clk
0:04:15.5]} 15... Nxe4 {[%clk 0:03:51]} 16. Bxe4 {[%clk 0:04:14.6]} 16... Bxh3
{[%clk 0:03:44.4]} 17. Bxb7 {[%clk 0:04:09.2]} 17... Qxb7 {[%clk 0:03:28.3]} 18.
Kxh3 {[%clk 0:04:06.5]} 18... c5 {[%clk 0:03:26.1]} 19. Nb3 {[%clk 0:04:02.3]}
19... Qd7+ {[%clk 0:03:21.2]} 20. Kh2 {[%clk 0:04:00.1]} 20... Re5 {[%clk
0:03:18.2]} 21. Kg2 {[%clk 0:03:51.4]} 21... Rh5 {[%clk 0:03:08.1]} 22. Rh1
{[%clk 0:03:49.2]} 22... Qc6+ {[%clk 0:03:04.1]} 23. f3 {[%clk 0:03:47.5]} 23...
Rxh1 {[%clk 0:02:58.9]} 24. Rxh1 {[%clk 0:03:45.2]} 24... Re8 {[%clk 0:02:54.7]}
25. Bf2 {[%clk 0:03:39.8]} 25... h5 {[%clk 0:02:42.4]} 26. Re1 {[%clk
0:03:36.5]} 26... Rxe1 {[%clk 0:02:33.7]} 27. Bxe1 {[%clk 0:03:32.7]} 27... Qe8
{[%clk 0:02:32.3]} 28. Bf2 {[%clk 0:03:27.7]} 28... Qe6 {[%clk 0:02:26.8]} 29.
Qe4 {[%clk 0:03:23.6]} 29... Qf6 {[%clk 0:02:19.8]} 30. Qe2 {[%clk 0:03:13.3]}
30... Kh7 {[%clk 0:02:08.7]} 31. Nc1 {[%clk 0:03:06.7]} 31... Qxb2 {[%clk
0:01:46.4]} 32. Qxb2 {[%clk 0:03:04.8]} 32... Bxb2 {[%clk 0:01:43.7]} 33. Nd3
{[%clk 0:03:04.3]} 33... Ba3 {[%clk 0:01:37.1]} 34. Nf4 {[%clk 0:02:57.4]} 34...
f5 {[%clk 0:01:33.4]} 35. Nd5 {[%clk 0:02:56.2]} 35... Kg7 {[%clk 0:01:29.4]}
36. Be3 {[%clk 0:02:54.4]} 36... Kf7 {[%clk 0:01:26.8]} 37. Bf4 {[%clk
0:02:50.9]} 37... Ke6 {[%clk 0:01:24.8]} 38. Kh3 {[%clk 0:02:49.7]} 38... a5
{[%clk 0:01:20]} 39. Kh4 {[%clk 0:02:48.6]} 39... a4 {[%clk 0:01:07.6]} 40. Kg5
{[%clk 0:02:46]} 40... Kf7 {[%clk 0:00:41.5]} 41. Bxd6 {[%clk 0:02:44.2]} 41...
Bc1+ {[%clk 0:00:39.7]} 42. Nf4 {[%clk 0:02:39.3]} 42... Be3 {[%clk 0:00:33.3]}
43. Kh4 {[%clk 0:02:22.1]} 43... Kf6 {[%clk 0:00:24]} 44. Nd5+ {[%clk
0:02:19.5]} 1-0

[Event "Live Chess"]
[Site "Chess.com"]
[Date "2023.05.20"]
[Round "-"]
[White "Stanbad1"]
[Black "Daniel_Gliddon_FA"]
[Result "1-0"]
[WhiteElo "2387"]
[BlackElo "1308"]
[TimeControl "300"]
[EndTime "15:08:55 PDT"]
[Termination "Stanbad1 won by resignation"]

1. d4 {[%clk 0:04:58.4]} 1... Nf6 {[%clk 0:04:50.3]} 2. Nc3 {[%clk 0:04:56.1]}
2... g6 {[%clk 0:04:49.3]} 3. e4 {[%clk 0:04:54]} 3... Bg7 {[%clk 0:04:48.6]} 4.
Be3 {[%clk 0:04:52.3]} 4... d6 {[%clk 0:04:45.8]} 5. f3 {[%clk 0:04:51.7]} 5...
Nc6 {[%clk 0:04:43.8]} 6. Qd2 {[%clk 0:04:50.9]} 6... e5 {[%clk 0:04:39.5]} 7.
d5 {[%clk 0:04:49.4]} 7... Ne7 {[%clk 0:04:36.4]} 8. O-O-O {[%clk 0:04:49]} 8...
c6 {[%clk 0:04:33.7]} 9. dxc6 {[%clk 0:04:46.7]} 9... Nxc6 {[%clk 0:04:32.4]}
10. Qxd6 {[%clk 0:04:44.8]} 10... Qd7 {[%clk 0:04:29.8]} 11. Bb5 {[%clk
0:04:41.7]} 11... Qxd6 {[%clk 0:04:25.4]} 12. Rxd6 {[%clk 0:04:39.9]} 12... Bd7
{[%clk 0:04:24.3]} 13. Nge2 {[%clk 0:04:37.8]} 13... a6 {[%clk 0:04:16.5]} 14.
Bxc6 {[%clk 0:04:35.5]} 14... Bxc6 {[%clk 0:04:15.3]} 15. Rhd1 {[%clk
0:04:35.2]} 15... O-O {[%clk 0:04:11.6]} 16. Bg5 {[%clk 0:04:31.9]} 16... b5
{[%clk 0:04:00.4]} 17. Rxc6 {[%clk 0:04:23.2]} 17... b4 {[%clk 0:03:58]} 18.
Bxf6 {[%clk 0:04:04.4]} 18... Bxf6 {[%clk 0:03:39.9]} 19. Rxf6 {[%clk
0:04:01.3]} 19... bxc3 {[%clk 0:03:38.7]} 20. Nxc3 {[%clk 0:04:00.8]} 20... Rfc8
{[%clk 0:03:34]} 21. Nd5 {[%clk 0:03:57.5]} 21... Rc5 {[%clk 0:03:29.6]} 22. Nb6
{[%clk 0:03:54.9]} 22... Rb8 {[%clk 0:03:25.7]} 23. Nd7 {[%clk 0:03:53.4]} 1-0

[Event "Live Chess"]
[Site "Chess.com"]
[Date "2023.05.20"]
[Round "-"]
[White "hturner40"]
[Black "Man-Del-Brot"]
[Result "1-0"]
[WhiteElo "1804"]
[BlackElo "1122"]
[TimeControl "300"]
[EndTime "15:09:08 PDT"]
[Termination "hturner40 won by resignation"]

1. Nf3 {[%clk 0:04:56.8]} 1... d5 {[%clk 0:04:55.8]} 2. g3 {[%clk 0:04:55.5]}
2... Nc6 {[%clk 0:04:54.6]} 3. d4 {[%clk 0:04:53.6]} 3... g6 {[%clk 0:04:48]} 4.
Bg2 {[%clk 0:04:52.1]} 4... Bg7 {[%clk 0:04:46.9]} 5. O-O {[%clk 0:04:50.9]}
5... e5 {[%clk 0:04:45.7]} 6. Nxe5 {[%clk 0:04:46.5]} 6... Nxe5 {[%clk 0:04:27]}
7. dxe5 {[%clk 0:04:43.5]} 7... c6 {[%clk 0:04:26]} 8. c4 {[%clk 0:04:25.3]}
8... Ne7 {[%clk 0:04:04.8]} 9. cxd5 {[%clk 0:04:21]} 9... Nxd5 {[%clk
0:04:02.2]} 10. e4 {[%clk 0:04:17.3]} 10... Nb4 {[%clk 0:03:48.1]} 11. Qxd8+
{[%clk 0:04:10.4]} 11... Kxd8 {[%clk 0:03:46.1]} 12. Bg5+ {[%clk 0:03:48]} 12...
Kc7 {[%clk 0:03:42]} 13. Nc3 {[%clk 0:03:24.6]} 13... Bxe5 {[%clk 0:03:31.7]}
14. Rad1 {[%clk 0:03:22.4]} 14... f6 {[%clk 0:03:15.7]} 15. Bf4 {[%clk
0:03:11.8]} 15... Bxf4 {[%clk 0:03:11.1]} 16. gxf4 {[%clk 0:03:10]} 16... Be6
{[%clk 0:03:08.3]} 17. a3 {[%clk 0:03:05.9]} 17... Na6 {[%clk 0:02:54.4]} 18.
Rc1 {[%clk 0:02:57.4]} 18... Bc4 {[%clk 0:02:35.6]} 19. Nd5+ {[%clk 0:02:21.6]}
19... Bxd5 {[%clk 0:02:28.4]} 20. exd5 {[%clk 0:02:20.2]} 20... c5 {[%clk
0:02:27.3]} 21. b4 {[%clk 0:02:15.7]} 21... Kd6 {[%clk 0:02:22.9]} 22. Rfe1
{[%clk 0:01:55.1]} 22... Rhe8 {[%clk 0:02:11.8]} 23. Re6+ {[%clk 0:01:46.8]}
23... Rxe6 {[%clk 0:02:09.7]} 24. dxe6 {[%clk 0:01:44.3]} 24... Kxe6 {[%clk
0:02:08.5]} 25. Bxb7 {[%clk 0:01:42.2]} 25... Rb8 {[%clk 0:01:55.7]} 26. Bxa6
{[%clk 0:01:38]} 26... cxb4 {[%clk 0:01:54.5]} 27. axb4 {[%clk 0:01:36.3]} 27...
Rxb4 {[%clk 0:01:53.3]} 28. Rc7 {[%clk 0:01:27.8]} 28... Rxf4 {[%clk 0:01:45.6]}
29. Rxa7 {[%clk 0:01:26.2]} 29... Rh4 {[%clk 0:01:22.5]} 30. Bc8+ {[%clk
0:01:19.8]} 30... Ke5 {[%clk 0:01:17.3]} 31. Ra5+ {[%clk 0:01:12.1]} 31... Kd6
{[%clk 0:01:07.7]} 32. Ra6+ {[%clk 0:00:58.7]} 32... Kc7 {[%clk 0:01:04.9]} 33.
Be6 {[%clk 0:00:56.8]} 33... Kb7 {[%clk 0:01:00.4]} 34. Rd6 {[%clk 0:00:54]}
34... Kc7 {[%clk 0:00:58.3]} 35. Rd7+ {[%clk 0:00:52.6]} 35... Kc6 {[%clk
0:00:56.2]} 36. Kg2 {[%clk 0:00:47.7]} 36... Rh5 {[%clk 0:00:47.9]} 37. Rf7
{[%clk 0:00:40]} 37... Rg5+ {[%clk 0:00:41.8]} 38. Kf3 {[%clk 0:00:38.2]} 38...
f5 {[%clk 0:00:37]} 39. Rf6 {[%clk 0:00:32]} 39... Rg4 {[%clk 0:00:24.3]} 40.
Bxf5+ {[%clk 0:00:27.9]} 40... Kd5 {[%clk 0:00:21.3]} 41. Bxg4 {[%clk
0:00:26.2]} 1-0

[Event "Live Chess"]
[Site "Chess.com"]
[Date "2023.05.20"]
[Round "-"]
[White "Ferrarifan27"]
[Black "elvenstar"]
[Result "1-0"]
[WhiteElo "2063"]
[BlackElo "1568"]
[TimeControl "300"]
[EndTime "15:09:23 PDT"]
[Termination "Ferrarifan27 won by resignation"]

1. e4 {[%clk 0:04:58.5]} 1... d5 {[%clk 0:04:58.9]} 2. exd5 {[%clk 0:04:56.9]}
2... Nf6 {[%clk 0:04:57.3]} 3. d4 {[%clk 0:04:55.3]} 3... e6 {[%clk 0:04:56.2]}
4. Nf3 {[%clk 0:04:53.2]} 4... exd5 {[%clk 0:04:54.5]} 5. Bd3 {[%clk 0:04:45.6]}
5... Bd6 {[%clk 0:04:53.2]} 6. O-O {[%clk 0:04:43.1]} 6... Be6 {[%clk
0:04:51.9]} 7. Re1 {[%clk 0:04:41.5]} 7... O-O {[%clk 0:04:50.5]} 8. Nc3 {[%clk
0:04:39.2]} 8... c6 {[%clk 0:04:48.5]} 9. Ng5 {[%clk 0:04:37.3]} 9... Bg4 {[%clk
0:04:44.4]} 10. f3 {[%clk 0:04:32.8]} 10... Bh5 {[%clk 0:04:42.6]} 11. Ne2
{[%clk 0:04:27.1]} 11... h6 {[%clk 0:04:35.6]} 12. Nh3 {[%clk 0:04:24.8]} 12...
Nbd7 {[%clk 0:04:34.3]} 13. Bf4 {[%clk 0:04:20.2]} 13... Qc7 {[%clk 0:04:30.1]}
14. Bxd6 {[%clk 0:04:19]} 14... Qxd6 {[%clk 0:04:28.6]} 15. Nhf4 {[%clk
0:04:18.5]} 15... Rfe8 {[%clk 0:04:20.4]} 16. Nxh5 {[%clk 0:04:15.1]} 16... Nxh5
{[%clk 0:04:18.1]} 17. Qd2 {[%clk 0:04:14.7]} 17... Nhf6 {[%clk 0:04:16]} 18.
Qf4 {[%clk 0:04:11]} 18... Qxf4 {[%clk 0:04:09.8]} 19. Nxf4 {[%clk 0:04:10.9]}
19... Rad8 {[%clk 0:03:52.6]} 20. Kf2 {[%clk 0:04:08]} 20... g5 {[%clk
0:03:47.9]} 21. Ne2 {[%clk 0:04:00.8]} 21... Kg7 {[%clk 0:03:46.4]} 22. Ng3
{[%clk 0:03:59.9]} 22... Kg8 {[%clk 0:03:25.4]} 23. Nf5 {[%clk 0:03:54.5]} 23...
h5 {[%clk 0:03:20.9]} 24. Nd6 {[%clk 0:03:45.8]} 24... Rxe1 {[%clk 0:03:16.6]}
25. Rxe1 {[%clk 0:03:45.7]} 25... b6 {[%clk 0:03:02.1]} 26. Nf5 {[%clk
0:03:40.5]} 26... Re8 {[%clk 0:02:46.5]} 27. Rxe8+ {[%clk 0:03:29.6]} 27... Nxe8
{[%clk 0:02:44.7]} 28. Ne7+ {[%clk 0:03:28.8]} 28... Kg7 {[%clk 0:02:42.3]} 29.
Nxc6 {[%clk 0:03:26.7]} 29... a5 {[%clk 0:02:38.4]} 30. Ne7 {[%clk 0:03:22.1]}
30... Nef6 {[%clk 0:02:32.8]} 31. Bb5 {[%clk 0:03:10.6]} 31... Nf8 {[%clk
0:02:26.2]} 32. Nc8 {[%clk 0:03:05.2]} 32... Ne6 {[%clk 0:02:22.8]} 33. c3
{[%clk 0:03:00.3]} 33... Nc7 {[%clk 0:02:17.5]} 34. Bc6 {[%clk 0:02:54.7]} 34...
b5 {[%clk 0:02:11.1]} 35. Na7 {[%clk 0:02:52.5]} 35... b4 {[%clk 0:02:03.4]} 36.
Nb5 {[%clk 0:02:51.3]} 36... Nxb5 {[%clk 0:01:57.4]} 37. Bxb5 {[%clk 0:02:50.1]}
37... Kf8 {[%clk 0:01:55.6]} 38. cxb4 {[%clk 0:02:49.1]} 38... axb4 {[%clk
0:01:53.1]} 39. a3 {[%clk 0:02:48.3]} 39... bxa3 {[%clk 0:01:45.9]} 40. bxa3
{[%clk 0:02:48.2]} 40... Ke7 {[%clk 0:01:44.6]} 41. a4 {[%clk 0:02:44.4]} 41...
Kd8 {[%clk 0:01:43.3]} 42. a5 {[%clk 0:02:42.7]} 42... Kc7 {[%clk 0:01:42.3]}
43. Ke3 {[%clk 0:02:42]} 43... Nh7 {[%clk 0:01:17.3]} 44. Be8 {[%clk 0:02:38.8]}
44... f6 {[%clk 0:01:07.1]} 45. Bxh5 {[%clk 0:02:36.9]} 45... Nf8 {[%clk
0:01:04.8]} 46. Bf7 {[%clk 0:02:33.5]} 46... Kc6 {[%clk 0:01:00.1]} 47. g3
{[%clk 0:02:31.5]} 47... Nd7 {[%clk 0:00:58.3]} 48. h4 {[%clk 0:02:29.4]} 1-0

[Event "Live Chess"]
[Site "Chess.com"]
[Date "2023.05.20"]
[Round "-"]
[White "Cimon"]
[Black "Hoogleboogle"]
[Result "1-0"]
[WhiteElo "1831"]
[BlackElo "1372"]
[TimeControl "300"]
[EndTime "15:09:29 PDT"]
[Termination "Cimon won by resignation"]

1. Nf3 {[%clk 0:04:58]} 1... d5 {[%clk 0:04:55]} 2. d4 {[%clk 0:04:56.5]} 2...
Nc6 {[%clk 0:04:53.6]} 3. Bf4 {[%clk 0:04:52.9]} 3... Bf5 {[%clk 0:04:51.5]} 4.
c3 {[%clk 0:04:51.6]} 4... e6 {[%clk 0:04:50.5]} 5. e3 {[%clk 0:04:48.3]} 5...
Bd6 {[%clk 0:04:48.4]} 6. Bg3 {[%clk 0:04:46]} 6... Bxg3 {[%clk 0:04:45.5]} 7.
hxg3 {[%clk 0:04:44.6]} 7... Nf6 {[%clk 0:04:37.1]} 8. Bd3 {[%clk 0:04:39.3]}
8... Bxd3 {[%clk 0:04:31]} 9. Qxd3 {[%clk 0:04:37.8]} 9... Qe7 {[%clk
0:04:18.6]} 10. Nbd2 {[%clk 0:04:35.4]} 10... O-O-O {[%clk 0:04:15.6]} 11. a4
{[%clk 0:04:28.8]} 11... a5 {[%clk 0:04:11.1]} 12. Nb3 {[%clk 0:04:19.4]} 12...
Ne4 {[%clk 0:03:48.5]} 13. Ne5 {[%clk 0:03:55.5]} 13... Nxe5 {[%clk 0:03:37.1]}
14. dxe5 {[%clk 0:03:54.3]} 14... Nc5 {[%clk 0:03:29.6]} 15. Nxc5 {[%clk
0:03:35.1]} 15... Qxc5 {[%clk 0:03:27.4]} 16. Rxh7 {[%clk 0:03:28.1]} 16... Rxh7
{[%clk 0:03:23.3]} 17. Qxh7 {[%clk 0:03:25.8]} 17... d4 {[%clk 0:03:13.8]} 18.
exd4 {[%clk 0:03:22.6]} 18... Qd5 {[%clk 0:03:04.4]} 19. f3 {[%clk 0:03:13.4]}
19... f6 {[%clk 0:02:46.9]} 20. exf6 {[%clk 0:02:39.6]} 20... gxf6 {[%clk
0:02:45]} 21. Qe4 {[%clk 0:02:37.4]} 21... Qd6 {[%clk 0:02:36.5]} 22. O-O-O
{[%clk 0:02:21.5]} 22... f5 {[%clk 0:02:28.5]} 23. Qe5 {[%clk 0:02:15.6]} 23...
Qxe5 {[%clk 0:02:23.7]} 24. dxe5 {[%clk 0:02:14]} 24... Rxd1+ {[%clk 0:02:22.4]}
25. Kxd1 {[%clk 0:02:12.7]} 25... Kd7 {[%clk 0:02:21.8]} 26. Kd2 {[%clk
0:02:10.8]} 26... Kc6 {[%clk 0:02:20.9]} 27. Kd3 {[%clk 0:02:07.9]} 27... Kd5
{[%clk 0:02:19.9]} 28. f4 {[%clk 0:02:06.6]} 28... c6 {[%clk 0:02:02.3]} 29. b3
{[%clk 0:02:01.9]} 29... b5 {[%clk 0:01:59.6]} 30. axb5 {[%clk 0:01:59.5]} 30...
cxb5 {[%clk 0:01:58.2]} 31. c4+ {[%clk 0:01:40.6]} 31... bxc4+ {[%clk
0:01:52.7]} 32. bxc4+ {[%clk 0:01:39.4]} 32... Kc5 {[%clk 0:01:51.7]} 33. Kc3
{[%clk 0:01:34.6]} 33... a4 {[%clk 0:01:50.4]} 34. g4 {[%clk 0:01:33.3]} 34...
fxg4 {[%clk 0:01:45.3]} 35. g3 {[%clk 0:01:29.5]} 35... a3 {[%clk 0:01:43.4]}
36. Kb3 {[%clk 0:01:28.1]} 36... a2 {[%clk 0:01:41.8]} 37. Kxa2 {[%clk
0:01:26.6]} 37... Kxc4 {[%clk 0:01:41]} 38. f5 {[%clk 0:01:25.3]} 38... exf5
{[%clk 0:01:39]} 39. e6 {[%clk 0:01:24.3]} 39... f4 {[%clk 0:01:36.7]} 40. e7
{[%clk 0:01:22.7]} 40... f3 {[%clk 0:01:36]} 41. e8=Q {[%clk 0:01:20.9]} 41...
f2 {[%clk 0:01:35]} 42. Qf7+ {[%clk 0:01:19.3]} 42... Kd3 {[%clk 0:01:32.7]} 43.
Qxf2 {[%clk 0:01:17.5]} 1-0

[Event "Live Chess"]
[Site "Chess.com"]
[Date "2023.05.20"]
[Round "-"]
[White "Biranidun"]
[Black "grillage"]
[Result "1-0"]
[WhiteElo "2766"]
[BlackElo "1849"]
[TimeControl "300"]
[EndTime "15:09:35 PDT"]
[Termination "Biranidun won by checkmate"]

1. e4 {[%clk 0:04:58.7]} 1... d5 {[%clk 0:04:57.6]} 2. exd5 {[%clk 0:04:57.9]}
2... Qxd5 {[%clk 0:04:55.9]} 3. Nc3 {[%clk 0:04:57.2]} 3... Qd8 {[%clk
0:04:54.2]} 4. d4 {[%clk 0:04:56.6]} 4... Nf6 {[%clk 0:04:52.3]} 5. Nf3 {[%clk
0:04:56.1]} 5... Bg4 {[%clk 0:04:51]} 6. h3 {[%clk 0:04:54.7]} 6... Bxf3 {[%clk
0:04:49.7]} 7. Qxf3 {[%clk 0:04:54.6]} 7... c6 {[%clk 0:04:49]} 8. g4 {[%clk
0:04:53.4]} 8... e6 {[%clk 0:04:39.2]} 9. g5 {[%clk 0:04:40.1]} 9... Nd5 {[%clk
0:04:35.4]} 10. Ne4 {[%clk 0:04:39.6]} 10... Nd7 {[%clk 0:04:04.4]} 11. Bd2
{[%clk 0:04:32.7]} 11... Qb6 {[%clk 0:03:51.2]} 12. O-O-O {[%clk 0:04:31.3]}
12... Be7 {[%clk 0:03:16.9]} 13. c4 {[%clk 0:04:29.4]} 13... Nb4 {[%clk
0:02:46.7]} 14. a3 {[%clk 0:04:28.2]} 14... Na6 {[%clk 0:02:44.8]} 15. c5 {[%clk
0:04:23.9]} 15... Qd8 {[%clk 0:02:41.7]} 16. h4 {[%clk 0:04:22.3]} 16... Nc7
{[%clk 0:02:40.6]} 17. h5 {[%clk 0:04:20.2]} 17... Nd5 {[%clk 0:02:39.2]} 18.
Bc4 {[%clk 0:04:18.6]} 18... b5 {[%clk 0:02:27.6]} 19. Bd3 {[%clk 0:04:16.4]}
19... b4 {[%clk 0:02:25.4]} 20. a4 {[%clk 0:04:06.6]} 20... Qa5 {[%clk
0:02:21.2]} 21. b3 {[%clk 0:04:05.9]} 21... Nc3 {[%clk 0:02:06.3]} 22. Rde1
{[%clk 0:03:59.3]} 22... Nxc5 {[%clk 0:01:43.5]} 23. dxc5 {[%clk 0:03:29.5]}
23... Bxc5 {[%clk 0:01:38.7]} 24. g6 {[%clk 0:03:24.2]} 24... O-O {[%clk
0:01:20.1]} 25. Nf6+ {[%clk 0:03:14.5]} 25... Kh8 {[%clk 0:01:04.1]} 26. h6
{[%clk 0:03:13.8]} 26... Bd4 {[%clk 0:00:52.9]} 27. hxg7+ {[%clk 0:03:12.2]}
27... Kxg7 {[%clk 0:00:46.8]} 28. Rxh7# {[%clk 0:03:12.1]} 1-0

[Event "Live Chess"]
[Site "Chess.com"]
[Date "2023.05.20"]
[Round "-"]
[White "LanceMaster23"]
[Black "jagbama"]
[Result "1-0"]
[WhiteElo "1871"]
[BlackElo "1131"]
[TimeControl "300"]
[EndTime "15:09:41 PDT"]
[Termination "LanceMaster23 won by checkmate"]

1. Nf3 {[%clk 0:04:58.5]} 1... d5 {[%clk 0:04:58.1]} 2. d4 {[%clk 0:04:58]} 2...
e6 {[%clk 0:04:56.2]} 3. Bf4 {[%clk 0:04:57.5]} 3... Nf6 {[%clk 0:04:55.5]} 4.
e3 {[%clk 0:04:57]} 4... c5 {[%clk 0:04:53.7]} 5. c3 {[%clk 0:04:55.7]} 5... Nc6
{[%clk 0:04:52.9]} 6. Nbd2 {[%clk 0:04:55]} 6... h6 {[%clk 0:04:51.1]} 7. Be2
{[%clk 0:04:54.3]} 7... g5 {[%clk 0:04:50.5]} 8. Bg3 {[%clk 0:04:52.7]} 8... b6
{[%clk 0:04:42.6]} 9. Qa4 {[%clk 0:04:49.3]} 9... Bd7 {[%clk 0:04:40.8]} 10. Bb5
{[%clk 0:04:47.3]} 10... Qc8 {[%clk 0:04:25.8]} 11. Ne5 {[%clk 0:04:46]} 11...
Nxe5 {[%clk 0:04:18.3]} 12. Bxe5 {[%clk 0:04:45.9]} 12... Bg7 {[%clk 0:04:11.9]}
13. dxc5 {[%clk 0:04:36.7]} 13... bxc5 {[%clk 0:03:50.9]} 14. Nb3 {[%clk
0:04:08.8]} 14... a6 {[%clk 0:03:44.6]} 15. Bxd7+ {[%clk 0:04:06.9]} 15... Qxd7
{[%clk 0:03:41.1]} 16. Qxd7+ {[%clk 0:04:06.3]} 16... Kxd7 {[%clk 0:03:38.9]}
17. Nxc5+ {[%clk 0:04:04.9]} 17... Kc6 {[%clk 0:03:36.8]} 18. Nd3 {[%clk
0:03:57.1]} 18... Ne8 {[%clk 0:03:33.3]} 19. Bxg7 {[%clk 0:03:50.5]} 19... Nxg7
{[%clk 0:03:32.2]} 20. Ne5+ {[%clk 0:03:47.3]} 20... Kc7 {[%clk 0:03:24.5]} 21.
Nxf7 {[%clk 0:03:45.2]} 21... Rh7 {[%clk 0:03:20.8]} 22. Ne5 {[%clk 0:03:43.4]}
22... Nf5 {[%clk 0:03:15.5]} 23. Rd1 {[%clk 0:03:31.9]} 23... h5 {[%clk
0:03:11.7]} 24. Ke2 {[%clk 0:02:42.5]} 24... a5 {[%clk 0:03:09]} 25. f3 {[%clk
0:02:40.2]} 25... a4 {[%clk 0:03:07.5]} 26. e4 {[%clk 0:02:39.1]} 26... Ne7
{[%clk 0:03:00.7]} 27. Rd4 {[%clk 0:02:21.3]} 27... a3 {[%clk 0:02:57.4]} 28. b3
{[%clk 0:02:20.6]} 28... dxe4 {[%clk 0:02:47.4]} 29. fxe4 {[%clk 0:02:11]} 29...
g4 {[%clk 0:02:39.3]} 30. Rd7+ {[%clk 0:02:01.1]} 30... Kc8 {[%clk 0:02:16.4]}
31. Rhd1 {[%clk 0:01:12.9]} 31... Rb8 {[%clk 0:01:38.7]} 32. Rd8+ {[%clk
0:00:53.1]} 32... Kb7 {[%clk 0:01:36.6]} 33. R1d7+ {[%clk 0:00:52.7]} 33... Ka8
{[%clk 0:01:33.8]} 34. Rxb8+ {[%clk 0:00:48.6]} 34... Kxb8 {[%clk 0:01:32.7]}
35. Rxe7 {[%clk 0:00:48.4]} 35... Rxe7 {[%clk 0:01:31.4]} 36. Nc6+ {[%clk
0:00:47.9]} 36... Kc7 {[%clk 0:01:28.8]} 37. Nxe7 {[%clk 0:00:47.8]} 37... Kd6
{[%clk 0:01:28.3]} 38. Ng6 {[%clk 0:00:46.7]} 38... e5 {[%clk 0:01:24.5]} 39. b4
{[%clk 0:00:45.3]} 39... Ke6 {[%clk 0:01:18.9]} 40. c4 {[%clk 0:00:43.5]} 40...
Kf6 {[%clk 0:01:18]} 41. b5 {[%clk 0:00:42.3]} 41... Kxg6 {[%clk 0:01:17]} 42.
b6 {[%clk 0:00:42.1]} 42... Kg5 {[%clk 0:01:15.6]} 43. b7 {[%clk 0:00:41.6]}
43... Kf4 {[%clk 0:01:14.9]} 44. Kd3 {[%clk 0:00:38.5]} 44... h4 {[%clk
0:01:13.3]} 45. b8=Q {[%clk 0:00:37.3]} 45... g3 {[%clk 0:01:12.5]} 46. Qf8+
{[%clk 0:00:35.8]} 46... Kg4 {[%clk 0:01:10.7]} 47. Qg7+ {[%clk 0:00:33.3]}
47... Kf4 {[%clk 0:01:09.2]} 48. Qh6+ {[%clk 0:00:28.3]} 48... Kg4 {[%clk
0:01:07.7]} 49. h3# {[%clk 0:00:28]} 1-0

[Event "Live Chess"]
[Site "Chess.com"]
[Date "2023.05.20"]
[Round "-"]
[White "Richardallis"]
[Black "HoarseyHorsey"]
[Result "0-1"]
[WhiteElo "1869"]
[BlackElo "1437"]
[TimeControl "300"]
[EndTime "15:09:42 PDT"]
[Termination "HoarseyHorsey won by checkmate"]

1. d4 {[%clk 0:04:55]} 1... Nf6 {[%clk 0:04:57.8]} 2. Nf3 {[%clk 0:04:54.4]}
2... d5 {[%clk 0:04:57]} 3. Bg5 {[%clk 0:04:53.8]} 3... Bg4 {[%clk 0:04:56.2]}
4. Nbd2 {[%clk 0:04:53.2]} 4... e6 {[%clk 0:04:55.5]} 5. e4 {[%clk 0:04:51.6]}
5... dxe4 {[%clk 0:04:49.8]} 6. Nxe4 {[%clk 0:04:50.2]} 6... Be7 {[%clk
0:04:49]} 7. Bxf6 {[%clk 0:04:48.3]} 7... Bxf6 {[%clk 0:04:48.1]} 8. c3 {[%clk
0:04:47.7]} 8... Nd7 {[%clk 0:04:42.9]} 9. Bd3 {[%clk 0:04:46.8]} 9... O-O
{[%clk 0:04:41.4]} 10. Qe2 {[%clk 0:04:45.6]} 10... Rb8 {[%clk 0:04:19.7]} 11.
O-O {[%clk 0:04:43.3]} 11... b6 {[%clk 0:04:18.6]} 12. Rad1 {[%clk 0:04:40]}
12... Qe7 {[%clk 0:04:15.8]} 13. Rfe1 {[%clk 0:04:38.2]} 13... c5 {[%clk
0:04:13.3]} 14. dxc5 {[%clk 0:04:35.4]} 14... Nxc5 {[%clk 0:04:12.4]} 15. Nxc5
{[%clk 0:04:33.9]} 15... Qxc5 {[%clk 0:04:11.4]} 16. h3 {[%clk 0:04:32]} 16...
Bh5 {[%clk 0:04:09.9]} 17. Qe4 {[%clk 0:04:25.4]} 17... Bg6 {[%clk 0:04:04.2]}
18. Qe3 {[%clk 0:04:24.8]} 18... Rbc8 {[%clk 0:03:20.5]} 19. Bxg6 {[%clk
0:04:19.8]} 19... hxg6 {[%clk 0:03:17.3]} 20. Nd4 {[%clk 0:04:18.6]} 20... Rfd8
{[%clk 0:02:50.5]} 21. Nc2 {[%clk 0:04:03.5]} 21... Qc4 {[%clk 0:02:27.2]} 22.
a3 {[%clk 0:03:57.6]} 22... Rc5 {[%clk 0:01:49.9]} 23. Rxd8+ {[%clk 0:03:53.3]}
23... Bxd8 {[%clk 0:01:49.8]} 24. Qe4 {[%clk 0:03:50.2]} 24... Qd5 {[%clk
0:01:41.3]} 25. Nb4 {[%clk 0:03:45.6]} 25... Qd6 {[%clk 0:01:25.7]} 26. Qe2
{[%clk 0:03:39]} 26... Bc7 {[%clk 0:01:19.7]} 27. Rd1 {[%clk 0:03:36.7]} 27...
Qh2+ {[%clk 0:01:14.8]} 28. Kf1 {[%clk 0:03:35.6]} 28... Qh1# {[%clk 0:01:12.9]}
0-1